Cogmind - Beta 17.1 @@@ ROGUE MODE // 2026.08.29 @ 15:11:52 Player: Darsidian Result: Destroyed by 03-JW2(R) with Subdweller Laser Performance ------------- Evolutions (0) 0 Regions Visited (3) 600 Robots Destroyed (20) 100 Value Destroyed (475) 475 Prototype IDs (0) 0 Alien Tech Used (0) 0 Bonus (0) 0 TOTAL SCORE: 1175 Bonus ------- None Cogmind --------- Core Integrity 0/250 Matter 191/300 Energy 151/160 System Corruption 9% Temperature Cool (7) Movement Walking (190) Ox1 Location -10/Subcaves Parts ------- > --- POWER (1) -------- Light Nuclear Core > --- PROPULSION (2) --- Aluminum Leg > --- UTILITY (2) ------ Medium Storage Unit Structural Scanner > --- WEAPON (2) ------- Grenade Launcher > --- INVENTORY (10) --- Light Ion Engine Large Storage Unit Large Matter Pod (150) Targeting Computer ECM Suite Weapon Shielding Datajack Peak State ------------ > --- POWER ------------ Light Ion Engine > --- PROPULSION ------- Aluminum Leg Aluminum Leg > --- UTILITY ---------- Medium Storage Unit Visual Processing Unit > --- WEAPON ----------- Particle Gun Shotgun > --- INVENTORY -------- Light Ion Engine Aluminum Leg Aluminum Leg Large Storage Unit Medium Armor Plating Light Assault Rifle Shotgun Datajack Mining Laser [Rating: 11] Favorites ----------- Power Light Nuclear Core Engine Light Ion Engine Power Core Light Nuclear Core Propulsion Aluminum Leg Leg Aluminum Leg Utility Medium Storage Unit Device Seismic Detector Storage Medium Storage Unit Processor Visual Processing Unit Weapon Particle Gun Energy Gun Particle Gun Ballistic Gun Assault Rifle Launcher Grenade Launcher Special Weapon Mining Laser Special Melee Weapon Datajack Build | -11 -10 -10 -10 ------- Run | Yrd Mat Min Sub Slots Evolved . | . . . . Power . | . . . . Propulsion . | . . . . Utility . | . . . . Weapon . | . . . . Parts Attached 21 | 7 11 2 1 Power 2 | 1 1 . . Engine 1 | 1 . . . Core 1 | . 1 . . Reactor . | . . . . Propulsion 4 | 2 2 . . Treads . | . . . . Leg 4 | 2 2 . . Wheel . | . . . . Hover . | . . . . Flight . | . . . . Utility 7 | 2 4 1 . Device 3 | 1 1 1 . Storage 3 | 1 2 . . Processor 1 | . 1 . . Hackware . | . . . . Protection . | . . . . Artifact . | . . . . Weapon 8 | 2 4 1 1 Energy Gun 1 | . 1 . . Energy Cannon . | . . . . Ballistic Gun 4 | 2 2 . . Ballistic Cannon . | . . . . Launcher 1 | . . . 1 Special Weapon 1 | . 1 . . Impact Weapon . | . . . . Slashing Weapon . | . . . . Piercing Weapon . | . . . . Special Melee Weapon 1 | . . 1 . Unidentified Prototypes . | . . . . Parts Lost 5 | . . . 5 Power . | . . . . Propulsion 2 | . . . 2 Utility 1 | . . . 1 Weapon 2 | . . . 2 Highest Loss Streak 3 | . . . 3 To Critical Strikes 1 | . . . 1 Average Backups 8 | 2 8 9 9 Power 1 | . 1 1 1 Propulsion 1 | 1 1 1 1 Utility 3 | . 3 5 5 Weapon 1 | . 1 2 1 Tool/Special . | . . . . Unused Backups 14 | . 7 2 5 Power 2 | . 1 . 1 Propulsion 2 | . 2 . . Utility 7 | . 3 . 4 Weapon 3 | . 1 2 . Tool/Special . | . . . . Average Slot Usage (%) 99 | . 99 100 95 Engine 6 | . 10 . . Core 7 | . 3 14 14 Leg 27 | . 28 28 27 Device 9 | . 6 14 14 Storage 14 | . 14 14 14 Processor 3 | . 6 . . Energy Gun 11 | . 10 14 13 Ballistic Gun 13 | . 15 11 1 Special Melee Weapon 1 | . . 2 6 Peak Build Rating 11 | 7 11 11 11 Average Rating 9 | 4 9 10 10 On Entrance 7 | . 7 11 11 Avg Prop Armor Cover (%) . | . . . . Naked Turns . | . . . . Heaviest Build 26 | 11 26 21 21 Greatest Support 20 | 20 20 20 20 Greatest Overweight (x) 1 | . 1 1 1 Average Overweight (x) . | . . . . Largest Inventory Capacity 15 | 8 15 10 10 Average Capacity 9 | 5 9 10 10 Most Carried 10 | 4 10 10 10 Average Carried 8 | 2 8 9 9 Final Capacity 10 | 8 10 10 10 Final Carried 10 | 4 10 10 7 Class Distribution -------------------- 59% | Scavenger-Mutant 40% | Mutant Dominant Class ---------------- Mutant | -10/Materials Scavenger-Mutant | -10/Mines Scavenger-Mutant | -10/Subcaves Resources | -11 -10 -10 -10 ----------- Run | Yrd Mat Min Sub Matter Collected 963 | 312 552 60 39 Remotely . | . . . . Salvage Created 809 | 100 492 166 51 Parts 37 | 9 20 5 3 Haulers Intercepted 2 | . 2 . . Recyclers Shooed . | . . . . Parts Field Recycled . | . . . . Retrieved Matter . | . . . . Parts Self-Destructed 11 | . . . 11 Prevented . | . . . . Parts Restored . | . . . . Kills | -11 -10 -10 -10 ------- Run | Yrd Mat Min Sub Combat Hostiles Destroyed 10 | . 8 . 2 Guns 9 | . 8 . 1 AOE 1 | . . . 1 Classes Destroyed 7 | 2 4 . 1 Tunneler 2 | 2 . . . Hauler 2 | . 2 . . Recycler 3 | 1 . 2 . Operator 1 | . 1 . . Watcher 2 | . 2 . . Grunt 8 | . 8 . . Subdweller 2 | . . . 2 Best Kill Streak 2 | 1 2 1 2 Combat Bots Only 2 | . 2 . 2 Max Kills in Single Turn 1 | 1 1 1 1 Gunslinging . | . . . . Exploded 1 | . . . 1 Melee . | . . . . Uniques/NPCs Destroyed . | . . . . Combat | -11 -10 -10 -10 -------- Run | Yrd Mat Min Sub Hostile Shots Fired 66 | . 37 . 29 Missed 16 | . 7 . 9 Hits 50 | . 30 . 20 Projectile 50 | . 30 . 20 Critical Strikes 3 | . 1 . 2 Damage Taken 985 | . 403 . 582 Core 259 | . 156 . 103 Absorbed by Shields . | . . . . Regen/Repaired (Parts) 20 | . 20 . . Core Remaining (%) 100 | 100 . . . Volleys Fired 105 | 21 60 4 20 Largest 2 | 2 2 2 2 Hottest 100 | 40 100 85 95 Shots Fired 188 | 42 109 8 29 Gun 175 | 42 105 8 20 Cannon . | . . . . Launcher 9 | . . . 9 Special 4 | . 4 . . Kinetic 118 | 42 67 4 5 Thermal 61 | . 42 4 15 Explosive 9 | . . . 9 Electromagnetic . | . . . . Robot Hit Streak 25 | 5 17 24 25 Robot Miss Streak 5 | 5 5 . 2 Penetration Max . | . . . . Secondary Targets . | . . . . Shots Hit Robots 117 | 23 70 8 16 Core Hits 44 | 7 28 4 5 Critical Kills . | . . . . Critical Parts Destroyed 1 | . 1 . . Critical Strikes 3 | . 2 . 1 Burn 2 | . 1 . 1 Destroy 1 | . 1 . . Melee Attacks 1 | . . 1 . Impact . | . . . . Slashing . | . . . . Piercing . | . . . . Sneak Attacks 1 | . . 1 . Combat Hostiles . | . . . . Follow-up Attacks . | . . . . Damage Inflicted 1638 | 198 901 97 442 Guns 1370 | 198 901 97 174 Cannons . | . . . . Explosions 268 | . . . 268 Melee . | . . . . Ramming . | . . . . Kinetic 882 | 198 586 49 49 Thermal 488 | . 315 48 125 Explosive 268 | . . . 268 Electromagnetic . | . . . . Impact . | . . . . Slashing . | . . . . Piercing . | . . . . Highest Corruption 9 | . 2 2 9 Average Corruption 2 | . 2 2 4 Corruption Purged . | . . . . Corruption Blocked . | . . . . Effects 36 | . 20 11 5 Message Errors 9 | . 6 1 2 Matter Fused 11 | . 7 3 1 Heat Flow Errors 2 | . 1 1 . Energy Discharges 4 | . 2 2 . Parts Rejected 1 | . 1 . . Parts Fused 1 | . . 1 . Data Loss (minor) 3 | . . 2 1 Data Loss (major) 1 | . . 1 . Misfires 1 | . 1 . . Alerts 1 | . 1 . . Weapon Failures 2 | . 1 . 1 Overload Shots . | . . . . Overflow Damage . | . . . . Projectiles . | . . . . Explosions . | . . . . Melee . | . . . . Knockbacks . | . . . . Impact . | . . . . Kinetic . | . . . . Secondary . | . . . . Self-Inflicted Damage 37 | . . . 37 Shots 2 | . . . 2 Rammed . | . . . . Targets Rammed . | . . . . Kicked . | . . . . Crushed . | . . . . Highest Temperature 201 | . 201 136 2 Average Temperature 56 | . 56 51 2 Received Heat Transfer 324 | . 249 . 75 Siege Activations . | . . . . Martial Activations . | . . . . Shielding Activations . | . . . . Robots Disrupted . | . . . . Combat Hostiles . | . . . . Robots Corrupted . | . . . . Combat Hostiles . | . . . . Parts Fried . | . . . . Impact Corruptions . | . . . . Robots Melted . | . . . . Combat Hostiles . | . . . . Parts Melted 2 | . 2 . . Heat Transferred 1332 | . 851 111 370 Parts Sabotaged . | . . . . Parts Stolen . | . . . . Parts Stripped . | . . . . Power Chain Reactions . | . . . . Alert | -11 -10 -10 -10 ------- Run | Yrd Mat Min Sub Maximum Alert Level . | . . . . Low Security (%) 100 | 100 100 100 . Level 1 . | . . . . Level 2 . | . . . . Level 3 . | . . . . Level 4 . | . . . . Level 5 . | . . . . High Security . | . . . . Max Security . | . . . . Peak Influence 62 | 5 62 5 . Initial . | . . . . Average 7 | 1 12 . . Influence Increases 295 | 15 270 10 . Destroy 0b10 Robot/C 160 | . 160 . . Destroy 0b10 Robot/NC 50 | 15 25 10 . Destroy Leader 48 | . 48 . . Destroy Structure 7 | . 7 . . Lose Combat Pursuer 30 | . 30 . . Influence Decreases 295 | 15 270 10 . Time Decay 295 | 15 270 10 . Squads Dispatched 1 | . 1 . . Investigation . | . . . . Extermination . | . . . . Reinforcement 1 | . 1 . . Assault . | . . . . Garrison . | . . . . Intercept . | . . . . Searches Triggered . | . . . . Construction Impeded . | . . . . Haulers Reinforced . | . . . . Active Scanning Responses . | . . . . Cargo Convoy Interrupts . | . . . . Stealth | -11 -10 -10 -10 --------- Run | Yrd Mat Min Sub Distress Signals . | . . . . Communications Jammed . | . . . . Distress Signals . | . . . . Times Spotted 23 | . 19 . 4 Peak Tracking Total 4 | . 4 . 2 Tactical Retreats 2 | . 2 . . Traps | -11 -10 -10 -10 ------- Run | Yrd Mat Min Sub Traps Triggered 1 | . 1 . . Indirectly . | . . . . Trap Hack Attempts . | . . . . Triggered . | . . . . Disarmed . | . . . . Reprogrammed . | . . . . Reused . | . . . . Traps Extracted . | . . . . Installed . | . . . . Triggered . | . . . . Machines | -11 -10 -10 -10 ---------- Run | Yrd Mat Min Sub Machines Disabled . | . . . . Max in Single Turn . | . . . . Machines Repaired . | . . . . Machines Dismantled . | . . . . Machines Sabotaged . | . . . . Overloaded Fab Kills . | . . . . Hacking | -11 -10 -10 -10 --------- Run | Yrd Mat Min Sub Machines Accessed 4 | . 4 . . Terminals 2 | . 2 . . Fabricators . | . . . . Repair Stations 1 | . 1 . . Recycling Units 1 | . 1 . . Scanalyzers . | . . . . Garrison Access . | . . . . Total Hacks 9 | . 9 . . Successful 5 | . 5 . . Failed 4 | . 4 . . Catastrophic 2 | . 2 . . Database Lockouts . | . . . . Manual 2 | . 2 . . Terminals 4 | . 4 . . Fabricators . | . . . . Repair Stations 3 | . 3 . . Recycling Units 2 | . 2 . . Scanalyzers . | . . . . Garrison Access . | . . . . Terminal Hacks 2 | . 2 . . Emergency Access Points 1 | . 1 . . Dispatch Records 1 | . 1 . . Fabricator Hacks . | . . . . Repair Station Hacks 2 | . 2 . . Scan Component 1 | . 1 . . Repair 1 | . 1 . . Recycling Unit Hacks 1 | . 1 . . Retrieve Components 1 | . 1 . . Scanalyzer . | . . . . Garrison Access Hacks . | . . . . Unauthorized Hacks . | . . . . Terminals . | . . . . Fabricators . | . . . . Repair Stations . | . . . . Recycling Units . | . . . . Scanalyzers . | . . . . Garrison Access . | . . . . Data Cores Recovered . | . . . . Used . | . . . . Hacking Detections 2 | . 2 . . Full Trace Events . | . . . . Feedback Events . | . . . . Feedback Blocked . | . . . . Robot Schematics Acquired . | . . . . Robots Built . | . . . . Authchips . | . . . . Time . | . . . . Total Robot Build Rating . | . . . . Part Schematics Acquired . | . . . . Parts Built . | . . . . Authchips . | . . . . Time . | . . . . Total Part Build Rating . | . . . . Part Studies Acquired . | . . . . Parts Repaired 1 | . 1 . . Time 26 | . 26 . . Parts Recycled . | . . . . Recycled Matter . | . . . . Retrieved Matter . | . . . . Retrieved Components 1 | . 1 . . Parts Scanalyzed . | . . . . Part Schematics Acquired . | . . . . Parts Damaged . | . . . . Bothacking | -11 -10 -10 -10 ------------ Run | Yrd Mat Min Sub Used RIF Installer . | . . . . Robots Hacked . | . . . . Non-combat . | . . . . Combat . | . . . . Robot Hacks Applied . | . . . . Relay Couplers Released . | . . . . Fabnet Peak Effective % . | . . . . Robots Rewired . | . . . . Allies Hacked . | . . . . Hacks Repelled . | . . . . Allies | -11 -10 -10 -10 -------- Run | Yrd Mat Min Sub Total Allies . | . . . . Largest Group . | . . . . Highest-Rated Group . | . . . . Highest-Rated Ally . | . . . . Total Orders . | . . . . Ally Attacks . | . . . . Total Damage . | . . . . Kills . | . . . . Allies Corrupted . | . . . . Allies Melted . | . . . . Intel | -11 -10 -10 -10 ------- Run | Yrd Mat Min Sub Active Infowar (turns) 2343 | 28 1390 671 254 Optics 687 | . 687 . . Structural 436 | . . 259 177 Seismic 1220 | 28 703 412 77 Robot Analysis Total . | . . . . Derelict Logs Recovered 1 | . . 1 . Drone Launches . | . . . . Drone Recoveries . | . . . . Exploration | -11 -10 -10 -10 ------------- Run | Yrd Mat Min Sub Turns Passed 2552 | 157 1468 671 256 Spaces Moved 1369 | 78 769 361 161 Core 10 | 10 . . . Treads . | . . . . Legs 1359 | 68 769 361 161 Wheels . | . . . . Hover . | . . . . Flight . | . . . . Fastest Speed 50 | 50 120 120 120 Average Speed 143 | 111 138 171 123 Slowest Speed 190 | 120 190 190 190 Overloaded Moves . | . . . . Propulsion Burnouts . | . . . . Robots Hopped . | . . . . Potential Cave-ins 3 | . . . 3 Cave-ins Triggered 1 | . . . 1 Exploration Rate (%) 35 | 3 66 59 13 Regions Visited 3 Branch Regions 2 Pre-discovered Areas . | . . . . Known Exits Taken . | . . . . Unknown Exits Taken 3 | 1 1 1 . Scrap Searched 1 | . . 1 . Spaces Dug 4 | . 4 . . Terrain Destroyed 62 | . 4 . 58 Melee . | . . . . Projectile 4 | . 4 . . AOE 58 | . . . 58 Terrain Rammed . | . . . . Walls Destroyed . | . . . . Machines Disabled . | . . . . Actions | -11 -10 -10 -10 --------- Run | Yrd Mat Min Sub Total 1764 | 111 1061 405 187 Wait 219 | 2 189 28 . Move 1366 | 77 768 360 161 Hop . | . . . . Pick Up 26 | 4 17 5 . Fast Attach 10 | 7 3 . . Attach 3 | . . . 3 Detach . | . . . . Swap 16 | . 11 2 3 Drop 18 | . 13 5 . Fire 105 | 21 60 4 20 Melee 1 | . . 1 . Ram . | . . . . Kick . | . . . . Crush . | . . . . Escape Stasis . | . . . . Rewire . | . . . . Trap . | . . . . Miscellaneous . | . . . . Route ------- -11/Scrapyard -10/Materials (discovered 3 exits: *Mat x2 / [*Min]) -10/Mines (discovered 2 exits: Mat / [*Sub]) -10/Subcaves History --------- Turn | Location | Event 12 | -11/Scrapyard | Discovered new exit (range 15) 158 | -11/Scrapyard | Entered Materials 225 | -10/Materials | Repaired Mining Laser 337 | -10/Materials | Build established: Mutant 703 | -10/Materials | Core integrity fell below 50% 767 | -10/Materials | Discovered new exit (range 11) 778 | -10/Materials | Discovered new exit (range 18) 1441 | -10/Materials | Discovered new exit (range 3) 1519 | -10/Materials | Build established: Scavenger-Mutant 1626 | -10/Materials | Entered Mines 1756 | -10/Mines | A weapon hastily lodged in a ceiling crevice suddenly fell to the ground 2163 | -10/Mines | Assembled infested the area 2168 | -10/Mines | Assisted by a Guerilla fighting off Assembled 2213 | -10/Mines | Identified exit to Materials 2291 | -10/Mines | Discovered new exit (range 6) 2297 | -10/Mines | Entered Subcaves 2392 | -10/Subcaves | Shifting Twisted Machinery released Sub. Power Source 2394 | -10/Subcaves | Shifting Twisted Machinery released Sub. Beam Cannon 2429 | -10/Subcaves | Ambushed by Subdweller buried in earth 2472 | -10/Subcaves | Crushed by falling debris 2540 | -10/Subcaves | Core integrity fell below 20% 2553 | -10/Subcaves | Destroyed by 03-JW2(R) with Subdweller Laser Last Messages --------------- 02456_ The unstable cave ceiling collapses. 02457_ Subatomizers dissect the Sub. Monowheel. 02458_ The unstable cave ceiling collapses. 02461_ Acquired 39 matter. 02465_ The unstable cave ceiling collapses. 02465_ Sub. Optics crushed. 02472_ The unstable cave ceiling collapses. 02472_ Crushed by falling debris. 02472_ Seismic Detector destroyed. 02472_ System corrupted by crushing effect (+4). 02472_ Assault Rifle destroyed. 02472_ System corrupted by crushing effect (+3). 02510_ 07